{"text_format":"1","workbook":"xlsx","n_sheets":10,"sheets":["By_jour","AP1","AP2","May1","May2","Jun1","Jun2","JUL1","jul2","ALL"],"not_rendered":{"charts":0,"images":0,"macros":1,"external_links":0,"defined_names":0,"comments":0,"pivot_tables":0},"unopened":[],"bounds":{"document_bytes":16777216,"sheet_cells":100000,"rows_first":2000,"rows_last":500,"rows_between":2000,"halvings":0,"cell_chars":16384,"cell_head_chars":4096},"cells_cut":0,"cells_raw":0,"read":"whole","date_system":"1900"}

{"sheet":"By_jour","index":0,"n_rows":15,"n_cols":9,"rows_kept":15,"cut":false,"hidden":false,"merged":[[1,1,1,2],[1,3,1,4],[1,5,1,6],[1,7,1,8]]}
[null,null,"بيـــان يومـي "]
["النوع","نوع1",null,"نوع2",null,"نوع3",null,"     الاجمــــــالى"]
["المـــــــــــوقع","كجم","طن","كجم","طن","كجم","طن","كجم","طن"]
["موقع1",2,8,3,4,9,17,{"$f":"MOD(SUM(B4+D4+F4),1000)","v":14},{"$f":"TRUNC(SUM(C4+E4+G4)+SUM(B4+D4+F4)/1000)","v":29}]
["موقع2",10,8,7,3,16,16,{"$f":"MOD(SUM(B5+D5+F5),1000)","v":33},{"$f":"TRUNC(SUM(C5+E5+G5)+SUM(B5+D5+F5)/1000)","v":27}]
["موقع3",20,4,19,4,11,4,50,12]
["موقع4",17,8,17,18,10,15,44,41]
["موقع5",6,1,10,15,4,8,20,24]
["موقع6",8,7,15,3,17,15,40,25]
["موقع7",7,7,7,1,5,10,19,18]
["موقع8",8,11,6,13,5,7,19,31]
["الاجمــــــــــــــــــــــالى",{"$f":"MOD(SUM(B4:B11),1000)","v":78},{"$f":"TRUNC(SUM(C4:C11)+SUM(B4:B11)/1000)","v":54},{"$f":"MOD(SUM(D4:D11),1000)","v":84},{"$f":"TRUNC(SUM(E4:E11)+SUM(D4:D11)/1000)","v":61},{"$f":"MOD(SUM(F4:F11),1000)","v":77},{"$f":"TRUNC(SUM(G4:G11)+SUM(F4:F11)/1000)","v":92},{"$f":"MOD(SUM(H4:H11),1000)","v":239},{"$f":"TRUNC(SUM(I4:I11)+SUM(H4:H11)/1000)","v":207}]
[]
["التـــــاريخ",null,null,null,null,null,null,"توقيع المسئول"]
["2020-05-16"]

{"sheet":"AP1","index":1,"n_rows":20,"n_cols":9,"rows_kept":20,"cut":false,"hidden":false,"merged":[[1,1,1,2],[1,3,1,4],[1,5,1,6],[1,7,1,8]]}
[null,null,"بيـــان يومـي "]
["النوع","نوع1",null,"نوع2",null,"نوع3",null,"     الاجمــــــالى"]
["التـــــــاريخ","كجم","طن","كجم","طن","كجم","طن","كجم","طن"]
[null,null,null,null,null,null,null,{"$f":"MOD(SUM(B4+D4+F4),1000)","v":0},{"$f":"TRUNC(SUM(C4+E4+G4)+SUM(B4+D4+F4)/1000)","v":0}]
[null,null,null,null,null,null,null,{"$f":"MOD(SUM(B5+D5+F5),1000)","v":0},{"$f":"TRUNC(SUM(C5+E5+G5)+SUM(B5+D5+F5)/1000)","v":0}]
[null,null,null,null,null,null,null,0,0]
[null,null,null,null,null,null,null,0,0]
[null,null,null,null,null,null,null,0,0]
[null,null,null,null,null,null,null,0,0]
[null,null,null,null,null,null,null,0,0]
[null,null,null,null,null,null,null,0,0]
[null,null,null,null,null,null,null,0,0]
[null,null,null,null,null,null,null,0,0]
[null,null,null,null,null,null,null,0,0]
[null,null,null,null,null,null,null,0,0]
[null,null,null,null,null,null,null,0,0]
[null,null,null,null,null,null,null,0,0]
[null,null,null,null,null,null,null,0,0]
[null,null,null,null,null,null,null,0,0]
["الاجمـــــــــالى",{"$f":"MOD(SUM(B4:B19),1000)","v":0},{"$f":"TRUNC(SUM(C4:C19)+SUM(B4:B19)/1000)","v":0},{"$f":"MOD(SUM(D4:D19),1000)","v":0},{"$f":"TRUNC(SUM(E4:E19)+SUM(D4:D19)/1000)","v":0},{"$f":"MOD(SUM(F4:F19),1000)","v":0},{"$f":"TRUNC(SUM(G4:G19)+SUM(F4:F19)/1000)","v":0},{"$f":"MOD(SUM(H4:H19),1000)","v":0},{"$f":"TRUNC(SUM(I4:I19)+SUM(H4:H19)/1000)","v":0}]

{"sheet":"AP2","index":2,"n_rows":22,"n_cols":9,"rows_kept":22,"cut":false,"hidden":false,"merged":[[0,0,0,8],[1,1,1,2],[1,3,1,4],[1,5,1,6],[1,7,1,8]]}
["بيان  بكميات\nمن الفتره 2020/4/15 م وحتى 2020/4/30 م"]
["النوع","نوع1",null,"نوع2",null,"نوع3",null,"     الاجمــــــالى"]
["التـــــــاريخ","كجم","طن","كجم","طن","كجم","طن","كجم","طن"]
["2020-04-16",78,54,84,61,77,92,239,207]
["2020-04-16",78,54,84,61,77,92,239,207]
[null,null,null,null,null,null,null,{"$f":"MOD(SUM(B6+D6+F6),1000)","v":0},{"$f":"TRUNC(SUM(C6+E6+G6)+SUM(B6+D6+F6)/1000)","v":0}]
[null,null,null,null,null,null,null,0,0]
[null,null,null,null,null,null,null,0,0]
[null,null,null,null,null,null,null,0,0]
[null,null,null,null,null,null,null,0,0]
[null,null,null,null,null,null,null,0,0]
[null,null,null,null,null,null,null,0,0]
[null,null,null,null,null,null,null,0,0]
[null,null,null,null,null,null,null,0,0]
[null,null,null,null,null,null,null,0,0]
[null,null,null,null,null,null,null,0,0]
[null,null,null,null,null,null,null,0,0]
[null,null,null,null,null,null,null,0,0]
[null,null,null,null,null,null,null,0,0]
["الاجمـــــــــالى",{"$f":"MOD(SUM(B4:B19),1000)","v":156},{"$f":"TRUNC(SUM(C4:C19)+SUM(B4:B19)/1000)","v":108},{"$f":"MOD(SUM(D4:D19),1000)","v":168},{"$f":"TRUNC(SUM(E4:E19)+SUM(D4:D19)/1000)","v":122},{"$f":"MOD(SUM(F4:F19),1000)","v":154},{"$f":"TRUNC(SUM(G4:G19)+SUM(F4:F19)/1000)","v":184},{"$f":"MOD(SUM(H4:H19),1000)","v":478},{"$f":"TRUNC(SUM(I4:I19)+SUM(H4:H19)/1000)","v":414}]
[]
[null,null,null,null,null,null,null,"توقيع المسئول"]

{"sheet":"May1","index":3,"n_rows":20,"n_cols":9,"rows_kept":20,"cut":false,"hidden":false,"merged":[[1,1,1,2],[1,3,1,4],[1,5,1,6],[1,7,1,8]]}
[]
["النوع","نوع1",null,"نوع2",null,"نوع3",null,"     الاجمــــــالى"]
["التـــــــاريخ","كجم","طن","كجم","طن","كجم","طن","كجم","طن"]
[null,null,null,null,null,null,null,{"$f":"MOD(SUM(B4+D4+F4),1000)","v":0},{"$f":"TRUNC(SUM(C4+E4+G4)+SUM(B4+D4+F4)/1000)","v":0}]
[null,null,null,null,null,null,null,{"$f":"MOD(SUM(B5+D5+F5),1000)","v":0},{"$f":"TRUNC(SUM(C5+E5+G5)+SUM(B5+D5+F5)/1000)","v":0}]
[null,null,null,null,null,null,null,0,0]
[null,null,null,null,null,null,null,0,0]
[null,null,null,null,null,null,null,0,0]
[null,null,null,null,null,null,null,0,0]
[null,null,null,null,null,null,null,0,0]
[null,null,null,null,null,null,null,0,0]
[null,null,null,null,null,null,null,0,0]
[null,null,null,null,null,null,null,0,0]
[null,null,null,null,null,null,null,0,0]
[null,null,null,null,null,null,null,0,0]
[null,null,null,null,null,null,null,0,0]
[null,null,null,null,null,null,null,0,0]
[null,null,null,null,null,null,null,0,0]
[null,null,null,null,null,null,null,0,0]
["الاجمـــــــــالى",{"$f":"MOD(SUM(B4:B19),1000)","v":0},{"$f":"TRUNC(SUM(C4:C19)+SUM(B4:B19)/1000)","v":0},{"$f":"MOD(SUM(D4:D19),1000)","v":0},{"$f":"TRUNC(SUM(E4:E19)+SUM(D4:D19)/1000)","v":0},{"$f":"MOD(SUM(F4:F19),1000)","v":0},{"$f":"TRUNC(SUM(G4:G19)+SUM(F4:F19)/1000)","v":0},{"$f":"MOD(SUM(H4:H19),1000)","v":0},{"$f":"TRUNC(SUM(I4:I19)+SUM(H4:H19)/1000)","v":0}]

{"sheet":"May2","index":4,"n_rows":20,"n_cols":9,"rows_kept":20,"cut":false,"hidden":false,"merged":[[1,1,1,2],[1,3,1,4],[1,5,1,6],[1,7,1,8]]}
[]
["النوع","نوع1",null,"نوع2",null,"نوع3",null,"     الاجمــــــالى"]
["التـــــــاريخ","كجم","طن","كجم","طن","كجم","طن","كجم","طن"]
["2020-05-16",78,54,84,61,77,92,239,207]
["2020-05-16",78,54,84,61,77,92,239,207]
[null,null,null,null,null,null,null,{"$f":"MOD(SUM(B6+D6+F6),1000)","v":0},{"$f":"TRUNC(SUM(C6+E6+G6)+SUM(B6+D6+F6)/1000)","v":0}]
[null,null,null,null,null,null,null,0,0]
[null,null,null,null,null,null,null,0,0]
[null,null,null,null,null,null,null,0,0]
[null,null,null,null,null,null,null,0,0]
[null,null,null,null,null,null,null,0,0]
[null,null,null,null,null,null,null,0,0]
[null,null,null,null,null,null,null,0,0]
[null,null,null,null,null,null,null,0,0]
[null,null,null,null,null,null,null,0,0]
[null,null,null,null,null,null,null,0,0]
[null,null,null,null,null,null,null,0,0]
[null,null,null,null,null,null,null,0,0]
[null,null,null,null,null,null,null,0,0]
["الاجمـــــــــالى",{"$f":"MOD(SUM(B4:B19),1000)","v":156},{"$f":"TRUNC(SUM(C4:C19)+SUM(B4:B19)/1000)","v":108},{"$f":"MOD(SUM(D4:D19),1000)","v":168},{"$f":"TRUNC(SUM(E4:E19)+SUM(D4:D19)/1000)","v":122},{"$f":"MOD(SUM(F4:F19),1000)","v":154},{"$f":"TRUNC(SUM(G4:G19)+SUM(F4:F19)/1000)","v":184},{"$f":"MOD(SUM(H4:H19),1000)","v":478},{"$f":"TRUNC(SUM(I4:I19)+SUM(H4:H19)/1000)","v":414}]

{"sheet":"Jun1","index":5,"n_rows":20,"n_cols":9,"rows_kept":20,"cut":false,"hidden":false,"merged":[[1,1,1,2],[1,3,1,4],[1,5,1,6],[1,7,1,8]]}
[]
["النوع","نوع1",null,"نوع2",null,"نوع3",null,"     الاجمــــــالى"]
["التـــــــاريخ","كجم","طن","كجم","طن","كجم","طن","كجم","طن"]
[null,null,null,null,null,null,null,{"$f":"MOD(SUM(B4+D4+F4),1000)","v":0},{"$f":"TRUNC(SUM(C4+E4+G4)+SUM(B4+D4+F4)/1000)","v":0}]
[null,null,null,null,null,null,null,{"$f":"MOD(SUM(B5+D5+F5),1000)","v":0},{"$f":"TRUNC(SUM(C5+E5+G5)+SUM(B5+D5+F5)/1000)","v":0}]
[null,null,null,null,null,null,null,0,0]
[null,null,null,null,null,null,null,0,0]
[null,null,null,null,null,null,null,0,0]
[null,null,null,null,null,null,null,0,0]
[null,null,null,null,null,null,null,0,0]
[null,null,null,null,null,null,null,0,0]
[null,null,null,null,null,null,null,0,0]
[null,null,null,null,null,null,null,0,0]
[null,null,null,null,null,null,null,0,0]
[null,null,null,null,null,null,null,0,0]
[null,null,null,null,null,null,null,0,0]
[null,null,null,null,null,null,null,0,0]
[null,null,null,null,null,null,null,0,0]
[null,null,null,null,null,null,null,0,0]
["الاجمـــــــــالى",{"$f":"MOD(SUM(B4:B19),1000)","v":0},{"$f":"TRUNC(SUM(C4:C19)+SUM(B4:B19)/1000)","v":0},{"$f":"MOD(SUM(D4:D19),1000)","v":0},{"$f":"TRUNC(SUM(E4:E19)+SUM(D4:D19)/1000)","v":0},{"$f":"MOD(SUM(F4:F19),1000)","v":0},{"$f":"TRUNC(SUM(G4:G19)+SUM(F4:F19)/1000)","v":0},{"$f":"MOD(SUM(H4:H19),1000)","v":0},{"$f":"TRUNC(SUM(I4:I19)+SUM(H4:H19)/1000)","v":0}]

{"sheet":"Jun2","index":6,"n_rows":20,"n_cols":9,"rows_kept":20,"cut":false,"hidden":false,"merged":[[1,1,1,2],[1,3,1,4],[1,5,1,6],[1,7,1,8]]}
[]
["النوع","نوع1",null,"نوع2",null,"نوع3",null,"     الاجمــــــالى"]
["التـــــــاريخ","كجم","طن","كجم","طن","كجم","طن","كجم","طن"]
[null,null,null,null,null,null,null,{"$f":"MOD(SUM(B4+D4+F4),1000)","v":0},{"$f":"TRUNC(SUM(C4+E4+G4)+SUM(B4+D4+F4)/1000)","v":0}]
[null,null,null,null,null,null,null,{"$f":"MOD(SUM(B5+D5+F5),1000)","v":0},{"$f":"TRUNC(SUM(C5+E5+G5)+SUM(B5+D5+F5)/1000)","v":0}]
[null,null,null,null,null,null,null,0,0]
[null,null,null,null,null,null,null,0,0]
[null,null,null,null,null,null,null,0,0]
[null,null,null,null,null,null,null,0,0]
[null,null,null,null,null,null,null,0,0]
[null,null,null,null,null,null,null,0,0]
[null,null,null,null,null,null,null,0,0]
[null,null,null,null,null,null,null,0,0]
[null,null,null,null,null,null,null,0,0]
[null,null,null,null,null,null,null,0,0]
[null,null,null,null,null,null,null,0,0]
[null,null,null,null,null,null,null,0,0]
[null,null,null,null,null,null,null,0,0]
[null,null,null,null,null,null,null,0,0]
["الاجمـــــــــالى",{"$f":"MOD(SUM(B4:B19),1000)","v":0},{"$f":"TRUNC(SUM(C4:C19)+SUM(B4:B19)/1000)","v":0},{"$f":"MOD(SUM(D4:D19),1000)","v":0},{"$f":"TRUNC(SUM(E4:E19)+SUM(D4:D19)/1000)","v":0},{"$f":"MOD(SUM(F4:F19),1000)","v":0},{"$f":"TRUNC(SUM(G4:G19)+SUM(F4:F19)/1000)","v":0},{"$f":"MOD(SUM(H4:H19),1000)","v":0},{"$f":"TRUNC(SUM(I4:I19)+SUM(H4:H19)/1000)","v":0}]

{"sheet":"JUL1","index":7,"n_rows":20,"n_cols":9,"rows_kept":20,"cut":false,"hidden":false,"merged":[[1,1,1,2],[1,3,1,4],[1,5,1,6],[1,7,1,8]]}
[]
["النوع","نوع1",null,"نوع2",null,"نوع3",null,"     الاجمــــــالى"]
["التـــــــاريخ","كجم","طن","كجم","طن","كجم","طن","كجم","طن"]
[null,null,null,null,null,null,null,{"$f":"MOD(SUM(B4+D4+F4),1000)","v":0},{"$f":"TRUNC(SUM(C4+E4+G4)+SUM(B4+D4+F4)/1000)","v":0}]
[null,null,null,null,null,null,null,{"$f":"MOD(SUM(B5+D5+F5),1000)","v":0},{"$f":"TRUNC(SUM(C5+E5+G5)+SUM(B5+D5+F5)/1000)","v":0}]
[null,null,null,null,null,null,null,0,0]
[null,null,null,null,null,null,null,0,0]
[null,null,null,null,null,null,null,0,0]
[null,null,null,null,null,null,null,0,0]
[null,null,null,null,null,null,null,0,0]
[null,null,null,null,null,null,null,0,0]
[null,null,null,null,null,null,null,0,0]
[null,null,null,null,null,null,null,0,0]
[null,null,null,null,null,null,null,0,0]
[null,null,null,null,null,null,null,0,0]
[null,null,null,null,null,null,null,0,0]
[null,null,null,null,null,null,null,0,0]
[null,null,null,null,null,null,null,0,0]
[null,null,null,null,null,null,null,0,0]
["الاجمـــــــــالى",{"$f":"MOD(SUM(B4:B19),1000)","v":0},{"$f":"TRUNC(SUM(C4:C19)+SUM(B4:B19)/1000)","v":0},{"$f":"MOD(SUM(D4:D19),1000)","v":0},{"$f":"TRUNC(SUM(E4:E19)+SUM(D4:D19)/1000)","v":0},{"$f":"MOD(SUM(F4:F19),1000)","v":0},{"$f":"TRUNC(SUM(G4:G19)+SUM(F4:F19)/1000)","v":0},{"$f":"MOD(SUM(H4:H19),1000)","v":0},{"$f":"TRUNC(SUM(I4:I19)+SUM(H4:H19)/1000)","v":0}]

{"sheet":"jul2","index":8,"n_rows":20,"n_cols":9,"rows_kept":20,"cut":false,"hidden":false,"merged":[[1,1,1,2],[1,3,1,4],[1,5,1,6],[1,7,1,8]]}
[]
["النوع","نوع1",null,"نوع2",null,"نوع3",null,"     الاجمــــــالى"]
["التـــــــاريخ","كجم","طن","كجم","طن","كجم","طن","كجم","طن"]
[null,null,null,null,null,null,null,{"$f":"MOD(SUM(B4+D4+F4),1000)","v":0},{"$f":"TRUNC(SUM(C4+E4+G4)+SUM(B4+D4+F4)/1000)","v":0}]
[null,null,null,null,null,null,null,{"$f":"MOD(SUM(B5+D5+F5),1000)","v":0},{"$f":"TRUNC(SUM(C5+E5+G5)+SUM(B5+D5+F5)/1000)","v":0}]
[null,null,null,null,null,null,null,0,0]
[null,null,null,null,null,null,null,0,0]
[null,null,null,null,null,null,null,0,0]
[null,null,null,null,null,null,null,0,0]
[null,null,null,null,null,null,null,0,0]
[null,null,null,null,null,null,null,0,0]
[null,null,null,null,null,null,null,0,0]
[null,null,null,null,null,null,null,0,0]
[null,null,null,null,null,null,null,0,0]
[null,null,null,null,null,null,null,0,0]
[null,null,null,null,null,null,null,0,0]
[null,null,null,null,null,null,null,0,0]
[null,null,null,null,null,null,null,0,0]
[null,null,null,null,null,null,null,0,0]
["الاجمـــــــــالى",{"$f":"MOD(SUM(B4:B19),1000)","v":0},{"$f":"TRUNC(SUM(C4:C19)+SUM(B4:B19)/1000)","v":0},{"$f":"MOD(SUM(D4:D19),1000)","v":0},{"$f":"TRUNC(SUM(E4:E19)+SUM(D4:D19)/1000)","v":0},{"$f":"MOD(SUM(F4:F19),1000)","v":0},{"$f":"TRUNC(SUM(G4:G19)+SUM(F4:F19)/1000)","v":0},{"$f":"MOD(SUM(H4:H19),1000)","v":0},{"$f":"TRUNC(SUM(I4:I19)+SUM(H4:H19)/1000)","v":0}]

{"sheet":"ALL","index":9,"n_rows":14,"n_cols":9,"rows_kept":14,"cut":false,"hidden":false,"merged":[[1,1,1,2],[1,3,1,4],[1,5,1,6],[1,7,1,8]]}
[null,null,"اجمالى كلى"]
["النوع","نوع1",null,"نوع2",null,"نوع3",null,"     الاجمــــــالى"]
["المـــــــــــوقع","كجم","طن","كجم","طن","كجم","طن","كجم","طن"]
["ابريل2",null,null,null,null,null,null,{"$f":"MOD(SUM(B4+D4+F4),1000)","v":0},{"$f":"TRUNC(SUM(C4+E4+G4)+SUM(B4+D4+F4)/1000)","v":0}]
["مايو1",null,null,null,null,null,null,{"$f":"MOD(SUM(B5+D5+F5),1000)","v":0},{"$f":"TRUNC(SUM(C5+E5+G5)+SUM(B5+D5+F5)/1000)","v":0}]
["مايو2",null,null,null,null,null,null,0,0]
["يونيو1",null,null,null,null,null,null,0,0]
["يونيو2",null,null,null,null,null,null,0,0]
["يوليو1",null,null,null,null,null,null,0,0]
["يوليو2",null,null,null,null,null,null,0,0]
[null,null,null,null,null,null,null,0,0]
["الاجمــــــــــــــــــــــالى",{"$f":"MOD(SUM(B4:B11),1000)","v":0},{"$f":"TRUNC(SUM(C4:C11)+SUM(B4:B11)/1000)","v":0},{"$f":"MOD(SUM(D4:D11),1000)","v":0},{"$f":"TRUNC(SUM(E4:E11)+SUM(D4:D11)/1000)","v":0},{"$f":"MOD(SUM(F4:F11),1000)","v":0},{"$f":"TRUNC(SUM(G4:G11)+SUM(F4:F11)/1000)","v":0},{"$f":"MOD(SUM(H4:H11),1000)","v":0},{"$f":"TRUNC(SUM(I4:I11)+SUM(H4:H11)/1000)","v":0}]
[]
["التـــــاريخ",null,null,null,null,null,null,"توقيع المسئول"]